[Event "Mistrovství Čech mládeže 2023 - HD14"]
[Site "Harrachov, Czech Republic"]
[Date "2023.10.25"]
[Round "6.3"]
[White "Jakubše, Tamae Severína"]
[Black "Křivka, Matěj"]
[Result "1/2-1/2"]
[TimeControl "90m + 30s"]
[WhiteElo "1627"]
[BlackElo "1665"]

1. e4 {[%clk 01:30:57]} {[%emt 00:00:02]} c5 {[%clk 01:30:55]} {[%emt
00:00:05]} 2. c3 {[%clk 01:31:23]} {[%emt 00:00:04]} Nf6 {[%clk 01:31:14]}
{[%emt 00:00:11]} 3. e5 {[%clk 01:31:46]} {[%emt 00:00:07]} Nd5 {[%clk
01:31:31]} {[%emt 00:00:12]} 4. Nf3 {[%clk 01:32:11]} {[%emt 00:00:06]} Nc6
{[%clk 01:31:16]} {[%emt 00:00:45]} 5. Bc4 {[%clk 01:32:31]} {[%emt 00:00:09]}
Nb6 {[%clk 01:30:57]} {[%emt 00:00:50]} 6. Bb3 {[%clk 01:32:55]} {[%emt
00:00:07]} d5 {[%clk 01:30:26]} {[%emt 00:01:01]} 7. exd6 {[%clk 01:33:18]}
{[%emt 00:00:08]} Qxd6 {[%clk 01:30:16]} {[%emt 00:00:39]} 8. O-O {[%clk
01:33:35]} {[%emt 00:00:13]} Be6 {[%clk 01:29:27]} {[%emt 00:01:19]} 9. Bxe6
{[%clk 01:28:35]} {[%emt 00:05:30]} Qxe6 {[%clk 01:29:48]} {[%emt 00:00:10]} 10.
d4 {[%clk 01:28:41]} {[%emt 00:00:25]} cxd4 {[%clk 01:27:49]} {[%emt 00:02:28]}
11. Nxd4 {[%clk 01:28:36]} {[%emt 00:00:35]} Nxd4 {[%clk 01:27:09]} {[%emt
00:01:10]} 12. Qxd4 {[%clk 01:28:21]} {[%emt 00:00:45]} Rd8 {[%clk 01:26:15]}
{[%emt 00:01:24]} 13. Qb4 {[%clk 01:26:05]} {[%emt 00:02:46]} Qd7 {[%clk
01:24:00]} {[%emt 00:02:46]} 14. Nd2 {[%clk 01:22:07]} {[%emt 00:04:27]} e6
{[%clk 01:19:56]} {[%emt 00:04:34]} 15. Qa5 {[%clk 01:19:35]} {[%emt 00:03:01]}
Qd5 {[%clk 01:12:42]} {[%emt 00:07:44]} 16. Qxa7 {[%clk 01:15:23]} {[%emt
00:04:43]} Bc5 {[%clk 01:09:02]} {[%emt 00:04:10]} 17. c4 {[%clk 01:12:36]}
{[%emt 00:03:17]} Nxc4 {[%clk 01:07:39]} {[%emt 00:01:53]} 18. Qa4+ {[%clk
01:12:06]} {[%emt 00:01:00]} Rd7 {[%clk 01:01:48]} {[%emt 00:06:21]} 19. Qxc4
{[%clk 01:09:52]} {[%emt 00:02:44]} Qc6 {[%clk 01:01:34]} {[%emt 00:00:45]} 20.
Qg4 {[%clk 01:09:36]} {[%emt 00:00:43]} f5 {[%clk 00:58:23]} {[%emt 00:03:43]}
21. Qh5+ {[%clk 01:07:28]} {[%emt 00:02:36]} g6 {[%clk 00:56:18]} {[%emt
00:02:38]} 22. Qh3 {[%clk 01:05:21]} {[%emt 00:02:35]} O-O {[%clk 00:56:05]}
{[%emt 00:00:44]} 23. Qf3 {[%clk 01:00:42]} {[%emt 00:05:09]} Qc7 {[%clk
00:54:51]} {[%emt 00:01:44]} 24. Nb3 {[%clk 00:58:34]} {[%emt 00:02:37]} Bd6
{[%clk 00:54:10]} {[%emt 00:01:11]} 25. h3 {[%clk 00:57:06]} {[%emt 00:01:57]}
e5 {[%clk 00:53:14]} {[%emt 00:01:27]} 26. Bh6 {[%clk 00:55:44]} {[%emt
00:01:52]} Rff7 {[%clk 00:52:13]} {[%emt 00:01:32]} 27. Rac1 {[%clk 00:53:23]}
{[%emt 00:02:50]} Qd8 {[%clk 00:50:07]} {[%emt 00:02:36]} 28. Rfd1 {[%clk
00:48:41]} {[%emt 00:05:12]} e4 {[%clk 00:49:22]} {[%emt 00:01:16]} 29. Qe3
{[%clk 00:45:18]} {[%emt 00:03:48]} Bh2+ {[%clk 00:45:34]} {[%emt 00:04:22]} 30.
Kxh2 {[%clk 00:41:37]} {[%emt 00:04:11]} Rxd1 {[%clk 00:45:58]} {[%emt
00:00:06]} 31. Rxd1 {[%clk 00:41:29]} {[%emt 00:00:39]} Qxd1 {[%clk 00:46:16]}
{[%emt 00:00:11]} 32. Qd2 {[%clk 00:38:50]} {[%emt 00:03:08]} Qxd2 {[%clk
00:46:14]} {[%emt 00:00:33]} 33. Nxd2 {[%clk 00:38:55]} {[%emt 00:00:26]} Rc7
{[%clk 00:44:45]} {[%emt 00:01:59]} 34. b3 {[%clk 00:35:59]} {[%emt 00:03:26]}
Rc2 {[%clk 00:42:56]} {[%emt 00:02:18]} 35. a4 {[%clk 00:35:05]} {[%emt
00:01:25]} Kf7 {[%clk 00:41:10]} {[%emt 00:02:16]} 36. Kg3 {[%clk 00:33:23]}
{[%emt 00:02:12]} Kf6 {[%clk 00:39:01]} {[%emt 00:02:39]} 37. h4 {[%clk
00:31:35]} {[%emt 00:02:19]} Rc3+ {[%clk 00:34:52]} {[%emt 00:04:39]} 38. Be3
{[%clk 00:30:39]} {[%emt 00:01:24]} Ke5 {[%clk 00:32:10]} {[%emt 00:03:14]} 39.
Nc4+ {[%clk 00:25:42]} {[%emt 00:05:26]} Kd5 {[%clk 00:30:41]} {[%emt
00:01:58]} 40. Na5 {[%clk 00:25:33]} {[%emt 00:00:40]} Ke5 {[%clk 00:30:19]}
{[%emt 00:00:52]} 41. Nc4+ {[%clk 00:17:34]} {[%emt 00:08:30]} Kd5 {[%clk
00:29:09]} {[%emt 00:01:39]} 42. Na5 {[%clk 00:15:50]} {[%emt 00:02:14]}
1/2-1/2

[Event "Mistrovství Čech mládeže 2023 - HD14"]
[Site "Harrachov, Czech Republic"]
[Date "2023.10.25"]
[Round "6.4"]
[White "Roubal, Matyáš"]
[Black "Migalko, Dmitriy"]
[Result "1/2-1/2"]
[TimeControl "90m + 30s"]
[WhiteElo "1884"]
[BlackElo "1842"]

1. e4 {[%clk 01:30:58]} {[%emt 00:00:02]} c6 {[%clk 01:30:56]} {[%emt
00:00:05]} 2. Nc3 {[%clk 01:31:07]} {[%emt 00:00:20]} d5 {[%clk 01:31:15]}
{[%emt 00:00:10]} 3. Nf3 {[%clk 01:31:34]} {[%emt 00:00:03]} g6 {[%clk
01:31:21]} {[%emt 00:00:24]} 4. exd5 {[%clk 01:28:36]} {[%emt 00:03:28]} cxd5
{[%clk 01:31:45]} {[%emt 00:00:07]} 5. Ne5 {[%clk 01:28:31]} {[%emt 00:00:35]}
Nc6 {[%clk 01:30:45]} {[%emt 00:01:30]} 6. Bb5 {[%clk 01:27:21]} {[%emt
00:01:40]} Bd7 {[%clk 01:30:32]} {[%emt 00:00:43]} 7. Nxd7 {[%clk 01:27:02]}
{[%emt 00:00:50]} Qxd7 {[%clk 01:30:56]} {[%emt 00:00:06]} 8. d4 {[%clk
01:26:13]} {[%emt 00:01:18]} Bg7 {[%clk 01:29:57]} {[%emt 00:01:28]} 9. Be3
{[%clk 01:24:51]} {[%emt 00:01:52]} e6 {[%clk 01:28:30]} {[%emt 00:01:57]} 10.
Na4 {[%clk 01:17:37]} {[%emt 00:07:46]} Qc7 {[%clk 01:17:06]} {[%emt 00:11:54]}
11. c3 {[%clk 01:17:25]} {[%emt 00:00:42]} b6 {[%clk 01:15:27]} {[%emt
00:02:08]} 12. O-O {[%clk 01:15:46]} {[%emt 00:02:08]} Nge7 {[%clk 01:14:54]}
{[%emt 00:01:04]} 13. Qd2 {[%clk 01:10:32]} {[%emt 00:05:44]} O-O {[%clk
01:09:53]} {[%emt 00:05:30]} 14. Bh6 {[%clk 01:09:07]} {[%emt 00:01:55]} Nf5
{[%clk 01:08:39]} {[%emt 00:01:44]} 15. Bxg7 {[%clk 01:09:34]} {[%emt
00:00:04]} Kxg7 {[%clk 01:08:57]} {[%emt 00:00:11]} 16. b3 {[%clk 01:09:26]}
{[%emt 00:00:38]} Nd6 {[%clk 01:05:12]} {[%emt 00:04:15]} 17. Bd3 {[%clk
01:09:44]} {[%emt 00:00:12]} Na5 {[%clk 01:01:38]} {[%emt 00:04:04]} 18. Nb2
{[%clk 01:08:52]} {[%emt 00:01:22]} Rac8 {[%clk 01:01:15]} {[%emt 00:00:52]} 19.
Rac1 {[%clk 01:09:20]} {[%emt 00:00:03]} b5 {[%clk 01:00:44]} {[%emt 00:01:00]}
20. Qe2 {[%clk 01:06:14]} {[%emt 00:03:37]} Qb6 {[%clk 00:57:53]} {[%emt
00:03:19]} 21. Qe5+ {[%clk 01:03:32]} {[%emt 00:03:13]} Kg8 {[%clk 00:58:05]}
{[%emt 00:00:17]} 22. Rc2 {[%clk 01:03:40]} {[%emt 00:00:23]} Rc6 {[%clk
00:56:39]} {[%emt 00:01:56]} 23. Rfc1 {[%clk 01:02:55]} {[%emt 00:01:15]} Rfc8
{[%clk 00:55:57]} {[%emt 00:01:12]} 24. h4 {[%clk 01:03:02]} {[%emt 00:00:24]}
Qb8 {[%clk 00:52:06]} {[%emt 00:04:21]} 25. h5 {[%clk 01:01:01]} Ne8 {[%clk
00:51:06]} {[%emt 00:03:59]} 26. Qxb8 {[%clk 01:00:07]} Rxb8 {[%clk 00:51:25]}
{[%emt 00:01:36]} 27. hxg6 {[%clk 01:00:32]} {[%emt 00:00:06]} hxg6 {[%clk
00:51:48]} {[%emt 00:00:07]} 28. c4 {[%clk 01:00:25]} {[%emt 00:00:37]} bxc4
{[%clk 00:51:03]} {[%emt 00:01:15]} 29. bxc4 {[%clk 01:00:44]} {[%emt
00:00:11]} dxc4 {[%clk 00:50:24]} {[%emt 00:01:09]} 30. Nxc4 {[%clk 01:01:02]}
{[%emt 00:00:12]} Nxc4 {[%clk 00:49:55]} {[%emt 00:00:59]} 31. Rxc4 {[%clk
01:00:25]} {[%emt 00:01:07]} Rxc4 {[%clk 00:48:25]} {[%emt 00:02:00]} 32. Rxc4
{[%clk 01:00:46]} {[%emt 00:00:09]} Kg7 {[%clk 00:47:46]} {[%emt 00:01:09]} 33.
Ra4 {[%clk 01:00:05]} {[%emt 00:01:11]} Rb7 {[%clk 00:46:47]} {[%emt 00:01:28]}
34. Be4 {[%clk 01:00:52]} {[%emt 00:00:14]} Rc7 {[%clk 00:46:57]} {[%emt
00:00:50]} 35. d5 {[%clk 01:00:33]} {[%emt 00:00:49]} exd5 {[%clk 00:43:41]}
{[%emt 00:03:46]} 36. Bxd5 {[%clk 01:00:53]} {[%emt 00:00:10]} Nf6 {[%clk
00:41:53]} {[%emt 00:02:18]} 37. Bb3 {[%clk 01:00:52]} {[%emt 00:00:32]} Nd7
{[%clk 00:41:39]} {[%emt 00:00:42]} 38. Kf1 {[%clk 01:00:19]} {[%emt 00:01:04]}
f6 {[%clk 00:38:48]} {[%emt 00:03:22]} 39. Rd4 {[%clk 00:59:40]} {[%emt
00:01:09]} g5 {[%clk 00:37:28]} {[%emt 00:01:50]} 40. Ke2 {[%clk 00:59:11]}
{[%emt 00:00:59]} Kg6 {[%clk 00:35:52]} {[%emt 00:02:06]} 41. Ke3 {[%clk
00:59:00]} {[%emt 00:00:41]} Ne5 {[%clk 00:34:35]} {[%emt 00:01:47]} 42. f4
{[%clk 00:57:21]} {[%emt 00:02:09]} gxf4+ {[%clk 00:31:00]} {[%emt 00:04:04]}
43. Kxf4 {[%clk 00:57:41]} {[%emt 00:00:09]} Rc5 {[%clk 00:29:37]} {[%emt
00:01:52]} 44. Ra4 {[%clk 00:55:49]} {[%emt 00:02:24]} a5 {[%clk 00:28:52]}
{[%emt 00:01:16]} 45. Rd4 {[%clk 00:55:13]} {[%emt 00:01:06]} Rb5 {[%clk
00:27:19]} {[%emt 00:02:04]} 46. Ke4 {[%clk 00:53:55]} {[%emt 00:01:47]} Kg5
{[%clk 00:24:25]} {[%emt 00:03:23]} 47. Ke3 {[%clk 00:52:17]} {[%emt 00:02:08]}
Rb7 {[%clk 00:22:10]} {[%emt 00:02:45]} 48. Rd5 {[%clk 00:50:05]} {[%emt
00:02:42]} a4 {[%clk 00:21:00]} {[%emt 00:01:40]} 49. Bxa4 {[%clk 00:49:20]}
{[%emt 00:01:15]} Rb2 {[%clk 00:20:57]} {[%emt 00:00:32]} 50. Bd1 {[%clk
00:48:07]} {[%emt 00:01:44]} Rxa2 {[%clk 00:19:45]} {[%emt 00:01:13]} 51. Bf3
{[%clk 00:48:20]} {[%emt 00:00:17]} 1/2-1/2

[Event "Mistrovství Čech mládeže 2023 - HD14"]
[Site "Harrachov, Czech Republic"]
[Date "2023.10.25"]
[Round "6.5"]
[White "Kravchenko, Andrey"]
[Black "Mikulka, Martin Michael"]
[Result "1/2-1/2"]
[TimeControl "90m + 30s"]
[WhiteElo "1541"]
[BlackElo "1826"]

1. c4 {[%clk 01:30:58]} e6 {[%clk 01:30:54]} {[%emt 00:00:07]} 2. g3 {[%clk
01:31:20]} {[%emt 00:00:08]} d5 {[%clk 01:31:19]} {[%emt 00:00:05]} 3. Bg2
{[%clk 01:31:29]} {[%emt 00:00:20]} Nf6 {[%clk 01:30:08]} {[%emt 00:01:41]} 4.
d4 {[%clk 01:30:17]} {[%emt 00:01:42]} dxc4 {[%clk 01:30:20]} {[%emt 00:00:19]}
5. Qa4+ {[%clk 01:28:35]} {[%emt 00:02:11]} Nbd7 {[%clk 01:21:29]} {[%emt
00:09:23]} 6. Qxc4 {[%clk 01:27:56]} {[%emt 00:01:08]} c5 {[%clk 01:21:14]}
{[%emt 00:00:46]} 7. dxc5 {[%clk 01:22:42]} {[%emt 00:05:44]} Bxc5 {[%clk
01:21:12]} {[%emt 00:00:31]} 8. Nf3 {[%clk 01:22:32]} {[%emt 00:00:40]} O-O
{[%clk 01:20:36]} {[%emt 00:01:06]} 9. O-O {[%clk 01:22:52]} {[%emt 00:00:10]}
Qe7 {[%clk 01:19:08]} {[%emt 00:01:58]} 10. Nc3 {[%clk 01:19:39]} {[%emt
00:03:43]} Nb6 {[%clk 01:11:54]} {[%emt 00:07:45]} 11. Qb3 {[%clk 01:19:27]}
{[%emt 00:00:41]} h6 {[%clk 01:08:08]} {[%emt 00:04:16]} 12. Rd1 {[%clk
01:17:37]} {[%emt 00:02:20]} Nbd5 {[%clk 01:06:47]} {[%emt 00:01:51]} 13. e3
{[%clk 00:58:42]} {[%emt 00:19:24]} Nxc3 {[%clk 01:01:17]} {[%emt 00:06:00]} 14.
Qxc3 {[%clk 00:52:26]} {[%emt 00:06:46]} Nd5 {[%clk 01:00:42]} {[%emt
00:01:05]} 15. Qb3 {[%clk 00:51:34]} {[%emt 00:01:22]} Rd8 {[%clk 00:56:26]}
{[%emt 00:04:46]} 16. Bd2 {[%clk 00:50:42]} {[%emt 00:01:22]} Bd7 {[%clk
00:54:16]} {[%emt 00:02:41]} 17. Bc3 {[%clk 00:43:01]} {[%emt 00:08:11]} Nxc3
{[%clk 00:52:42]} {[%emt 00:02:04]} 18. Qxc3 {[%clk 00:43:21]} {[%emt
00:00:09]} Bc6 {[%clk 00:52:32]} {[%emt 00:00:41]} 19. Ne5 {[%clk 00:35:59]}
{[%emt 00:07:52]} Bxg2 {[%clk 00:52:29]} {[%emt 00:00:33]} 20. Kxg2 {[%clk
00:36:23]} {[%emt 00:00:06]} Rac8 {[%clk 00:50:50]} {[%emt 00:02:09]} 21. Qb3
{[%clk 00:30:48]} {[%emt 00:06:04]} Qc7 {[%clk 00:40:58]} {[%emt 00:10:24]} 22.
Rxd8+ {[%clk 00:24:59]} {[%emt 00:06:19]} Rxd8 {[%clk 00:40:49]} {[%emt
00:00:38]} 23. Nf3 {[%clk 00:24:36]} {[%emt 00:00:52]} Be7 {[%clk 00:37:38]}
{[%emt 00:03:42]} 24. Rd1 {[%clk 00:24:11]} {[%emt 00:00:55]} Rxd1 {[%clk
00:36:19]} {[%emt 00:01:50]} 25. Qxd1 {[%clk 00:24:36]} {[%emt 00:00:05]} a6
{[%clk 00:33:56]} {[%emt 00:02:53]} 26. Qb3 {[%clk 00:22:08]} {[%emt 00:02:56]}
Bf6 {[%clk 00:33:35]} {[%emt 00:00:53]} 27. Qb4 {[%clk 00:20:11]} {[%emt
00:02:24]} Qc6 {[%clk 00:32:08]} {[%emt 00:01:59]} 28. b3 {[%clk 00:19:46]}
{[%emt 00:00:55]} b6 {[%clk 00:31:00]} {[%emt 00:01:39]} 29. Qd2 {[%clk
00:18:34]} {[%emt 00:01:42]} g5 {[%clk 00:28:40]} {[%emt 00:02:51]} 30. g4
{[%clk 00:17:27]} {[%emt 00:01:36]} h5 {[%clk 00:28:05]} {[%emt 00:01:04]} 31.
h3 {[%clk 00:17:50]} {[%emt 00:00:07]} hxg4 {[%clk 00:25:46]} {[%emt 00:02:50]}
32. hxg4 {[%clk 00:18:15]} {[%emt 00:00:05]} Qe4 {[%clk 00:25:06]} {[%emt
00:00:38]} 33. Kg3 {[%clk 00:18:07]} {[%emt 00:00:37]} 1/2-1/2

[Event "Mistrovství Čech mládeže 2023 - HD14"]
[Site "Harrachov, Czech Republic"]
[Date "2023.10.25"]
[Round "6.6"]
[White "Bělaška, Václav"]
[Black "Tejnor, Martin"]
[Result "1-0"]
[TimeControl "90m + 30s"]
[WhiteElo "1666"]
[BlackElo "1418"]

1. e4 {[%clk 01:30:58]} c5 {[%clk 01:30:56]} {[%emt 00:00:05]} 2. Nf3 {[%clk
01:31:25]} {[%emt 00:00:03]} d6 {[%clk 01:31:24]} {[%emt 00:00:01]} 3. d4
{[%clk 01:31:50]} {[%emt 00:00:05]} cxd4 {[%clk 01:31:50]} {[%emt 00:00:05]} 4.
Qxd4 {[%clk 01:32:12]} {[%emt 00:00:08]} a6 {[%clk 01:30:59]} {[%emt 00:01:21]}
5. c4 {[%clk 01:32:16]} {[%emt 00:00:25]} Nc6 {[%clk 01:31:05]} {[%emt
00:00:23]} 6. Qd3 {[%clk 01:31:20]} {[%emt 00:01:26]} e6 {[%clk 01:29:34]}
{[%emt 00:02:00]} 7. Nc3 {[%clk 01:31:41]} {[%emt 00:00:10]} Be7 {[%clk
01:29:41]} {[%emt 00:00:23]} 8. Be2 {[%clk 01:31:28]} {[%emt 00:00:43]} Nf6
{[%clk 01:28:27]} {[%emt 00:01:44]} 9. Bg5 {[%clk 01:31:38]} {[%emt 00:00:20]}
O-O {[%clk 01:27:58]} {[%emt 00:00:59]} 10. O-O {[%clk 01:29:20]} {[%emt
00:02:49]} Qc7 {[%clk 01:27:24]} {[%emt 00:01:04]} 11. Rfd1 {[%clk 01:28:03]}
{[%emt 00:01:46]} Rd8 {[%clk 01:26:48]} {[%emt 00:01:07]} 12. Nd4 {[%clk
01:24:15]} {[%emt 00:04:18]} Ne5 {[%clk 01:25:04]} {[%emt 00:02:14]} 13. Qg3
{[%clk 01:23:45]} {[%emt 00:01:00]} b6 {[%clk 01:18:29]} {[%emt 00:07:06]} 14.
f4 {[%clk 01:22:19]} {[%emt 00:01:55]} Ned7 {[%clk 01:15:05]} {[%emt 00:03:53]}
15. Bf3 {[%clk 01:15:44]} {[%emt 00:07:05]} Bb7 {[%clk 01:14:02]} {[%emt
00:01:33]} 16. e5 {[%clk 01:11:42]} {[%emt 00:04:32]} dxe5 {[%clk 01:03:24]}
{[%emt 00:11:08]} 17. fxe5 {[%clk 01:08:25]} {[%emt 00:03:47]} Bxf3 {[%clk
01:01:28]} {[%emt 00:02:26]} 18. Nxf3 {[%clk 01:04:23]} {[%emt 00:04:32]} Nh5
{[%clk 00:59:43]} {[%emt 00:02:14]} 19. Qg4 {[%clk 00:55:16]} {[%emt 00:09:37]}
Bxg5 {[%clk 00:58:51]} {[%emt 00:01:21]} 20. Qxg5 {[%clk 00:53:54]} {[%emt
00:01:53]} g6 {[%clk 00:57:14]} {[%emt 00:02:07]} 21. g4 {[%clk 00:46:06]}
{[%emt 00:08:18]} Ng7 {[%clk 00:56:31]} {[%emt 00:01:12]} 22. Rd4 {[%clk
00:43:36]} {[%emt 00:03:00]} Nc5 {[%clk 00:36:21]} {[%emt 00:20:40]} 23. Rad1
{[%clk 00:41:54]} {[%emt 00:02:12]} Rxd4 {[%clk 00:35:33]} {[%emt 00:01:18]} 24.
Rxd4 {[%clk 00:42:04]} {[%emt 00:00:20]} Ne8 {[%clk 00:35:03]} {[%emt
00:01:00]} 25. b4 {[%clk 00:39:11]} {[%emt 00:03:24]} Nd7 {[%clk 00:34:12]}
{[%emt 00:01:21]} 26. Ne4 {[%clk 00:33:46]} {[%emt 00:05:55]} h6 {[%clk
00:26:34]} {[%emt 00:08:08]} 27. Qe7 {[%clk 00:20:43]} {[%emt 00:13:33]} Nxe5
{[%clk 00:25:41]} {[%emt 00:01:23]} 28. Nf6+ {[%clk 00:21:05]} {[%emt
00:00:08]} Nxf6 {[%clk 00:25:24]} {[%emt 00:00:46]} 29. Qxc7 {[%clk 00:21:19]}
{[%emt 00:00:15]} Nxf3+ {[%clk 00:25:45]} {[%emt 00:00:08]} 30. Kg2 {[%clk
00:21:42]} {[%emt 00:00:08]} Nxd4 {[%clk 00:25:50]} {[%emt 00:00:26]} 31. Qe5
{[%clk 00:22:05]} {[%emt 00:00:07]} Nxg4 {[%clk 00:24:41]} {[%emt 00:01:38]} 32.
Qxd4 {[%clk 00:21:53]} {[%emt 00:00:42]} h5 {[%clk 00:24:31]} {[%emt 00:00:39]}
33. h3 {[%clk 00:21:14]} {[%emt 00:01:09]} Nh6 {[%clk 00:24:46]} {[%emt
00:00:15]} 34. Qxb6 {[%clk 00:21:35]} {[%emt 00:00:09]} e5 {[%clk 00:24:48]}
{[%emt 00:00:27]} 35. c5 {[%clk 00:21:49]} {[%emt 00:00:17]} Nf5 {[%clk
00:24:35]} {[%emt 00:00:43]} 36. c6 {[%clk 00:21:38]} {[%emt 00:00:41]} Re8
{[%clk 00:24:37]} {[%emt 00:00:27]} 37. Qc5 {[%clk 00:19:17]} {[%emt 00:02:51]}
e4 {[%clk 00:24:38]} {[%emt 00:00:29]} 38. c7 {[%clk 00:19:15]} {[%emt
00:00:32]} Rc8 {[%clk 00:24:09]} {[%emt 00:00:58]} 39. Kf2 {[%clk 00:19:24]}
{[%emt 00:00:21]} e3+ {[%clk 00:24:01]} {[%emt 00:00:38]} 40. Ke2 {[%clk
00:19:04]} {[%emt 00:00:49]} f6 {[%clk 00:22:48]} {[%emt 00:01:44]} 41. Qd5+
{[%clk 00:18:57]} {[%emt 00:00:37]} Kf8 {[%clk 00:21:09]} {[%emt 00:02:09]} 42.
Qd8+ {[%clk 00:19:10]} {[%emt 00:00:17]} 1-0

[Event "Mistrovství Čech mládeže 2023 - HD14"]
[Site "Harrachov, Czech Republic"]
[Date "2023.10.25"]
[Round "6.7"]
[White "Chernyy, Andrey"]
[Black "Kammová, Kateřina"]
[Result "1/2-1/2"]
[TimeControl "90m + 30s"]
[WhiteElo "1655"]
[BlackElo "1543"]

1. e4 {[%clk 01:30:57]} {[%emt 00:00:02]} c6 {[%clk 01:30:45]} {[%emt
00:00:16]} 2. d4 {[%clk 01:31:23]} {[%emt 00:00:04]} d5 {[%clk 01:30:45]}
{[%emt 00:00:29]} 3. e5 {[%clk 01:31:48]} {[%emt 00:00:06]} Bf5 {[%clk
01:30:55]} {[%emt 00:00:20]} 4. h4 {[%clk 01:31:55]} {[%emt 00:00:22]} Qb6
{[%clk 01:30:25]} {[%emt 00:01:00]} 5. Nf3 {[%clk 01:24:07]} {[%emt 00:08:18]}
e6 {[%clk 01:26:31]} {[%emt 00:04:24]} 6. Bd3 {[%clk 01:23:15]} {[%emt
00:01:22]} Ne7 {[%clk 01:22:43]} {[%emt 00:04:18]} 7. b3 {[%clk 01:16:38]}
{[%emt 00:07:07]} Nd7 {[%clk 01:17:53]} {[%emt 00:05:20]} 8. O-O {[%clk
01:08:32]} {[%emt 00:08:35]} c5 {[%clk 01:10:36]} {[%emt 00:07:48]} 9. c3
{[%clk 01:01:58]} {[%emt 00:07:04]} Rc8 {[%clk 01:05:55]} {[%emt 00:05:11]} 10.
Bg5 {[%clk 00:58:56]} {[%emt 00:03:32]} Bxd3 {[%clk 01:02:56]} {[%emt
00:03:30]} 11. Qxd3 {[%clk 00:58:54]} Nc6 {[%clk 01:02:22]} {[%emt 00:01:36]}
12. Be3 {[%clk 00:50:50]} Be7 {[%clk 00:55:39]} {[%emt 00:15:47]} 13. Re1
{[%clk 00:49:16]} O-O {[%clk 00:53:07]} {[%emt 00:05:04]} 14. Ng5 {[%clk
00:40:31]} Bxg5 {[%clk 00:49:58]} {[%emt 00:12:55]} 15. hxg5 {[%clk 00:40:55]}
cxd4 {[%clk 00:48:58]} {[%emt 00:01:38]} 16. Bxd4 {[%clk 00:41:04]} {[%emt
00:00:20]} Nxd4 {[%clk 00:47:56]} {[%emt 00:01:33]} 17. cxd4 {[%clk 00:38:48]}
{[%emt 00:02:46]} Rfe8 {[%clk 00:44:24]} {[%emt 00:04:01]} 18. Nc3 {[%clk
00:36:17]} {[%emt 00:03:00]} a6 {[%clk 00:42:35]} {[%emt 00:02:19]} 19. Ne2
{[%clk 00:32:07]} {[%emt 00:04:40]} Nf8 {[%clk 00:40:31]} {[%emt 00:02:34]} 20.
Rec1 {[%emt 00:02:58]} Ng6 {[%clk 00:36:32]} {[%emt 00:03:52]} 21. g3 {[%clk
00:28:43]} {[%emt 00:02:03]} Qd8 {[%clk 00:34:52]} {[%emt 00:02:10]} 22. Rxc8
{[%clk 00:26:51]} {[%emt 00:02:22]} Qxc8 {[%clk 00:33:46]} {[%emt 00:01:36]} 23.
Rc1 {[%clk 00:27:07]} {[%emt 00:00:14]} Qd8 {[%clk 00:32:35]} {[%emt 00:01:41]}
24. f4 {[%emt 00:01:35]} Ne7 {[%emt 00:00:58]} 25. Kg2 {[%emt 00:05:42]} Qa5
{[%emt 00:17:41]} 26. Rh1 {[%emt 00:01:48]} h6 {[%emt 00:00:51]} 27. gxh6
{[%clk 00:08:47]} {[%emt 00:00:08]} g6 {[%emt 00:02:08]} 28. Ra1 {[%emt
00:01:04]} 1/2-1/2

[Event "Mistrovství Čech mládeže 2023 - HD14"]
[Site "Harrachov, Czech Republic"]
[Date "2023.10.25"]
[Round "6.8"]
[White "Bělaška, Adam"]
[Black "Ježek, Jakub"]
[Result "1/2-1/2"]
[TimeControl "90m + 30s"]
[WhiteElo "1503"]
[BlackElo "1642"]

1. d4 {[%clk 01:30:57]} {[%emt 00:00:02]} d5 {[%clk 01:30:53]} {[%emt
00:00:07]} 2. c4 {[%clk 01:30:57]} {[%emt 00:00:29]} e6 {[%clk 01:31:15]}
{[%emt 00:00:08]} 3. Nf3 {[%clk 01:31:21]} {[%emt 00:00:06]} Nf6 {[%clk
01:31:37]} {[%emt 00:00:08]} 4. Bg5 {[%clk 01:31:36]} {[%emt 00:00:16]} Nbd7
{[%clk 01:31:47]} {[%emt 00:00:19]} 5. Nc3 {[%clk 01:31:43]} {[%emt 00:00:24]}
c6 {[%clk 01:32:04]} {[%emt 00:00:12]} 6. e3 {[%clk 01:32:00]} {[%emt
00:00:13]} Qa5 {[%clk 01:32:15]} {[%emt 00:00:19]} 7. Bxf6 {[%clk 01:31:28]}
{[%emt 00:01:02]} Nxf6 {[%clk 01:32:34]} {[%emt 00:00:12]} 8. a3 {[%clk
01:31:27]} {[%emt 00:00:32]} dxc4 {[%clk 01:30:23]} {[%emt 00:02:40]} 9. Bxc4
{[%clk 01:31:00]} {[%emt 00:00:56]} Bd6 {[%clk 01:28:54]} {[%emt 00:01:58]} 10.
O-O {[%clk 01:30:54]} {[%emt 00:00:37]} O-O {[%clk 01:28:16]} {[%emt 00:01:08]}
11. Qc2 {[%clk 01:29:57]} {[%emt 00:01:27]} Rd8 {[%clk 01:24:13]} {[%emt
00:04:33]} 12. Rad1 {[%clk 01:30:11]} {[%emt 00:00:17]} b5 {[%clk 01:14:28]}
{[%emt 00:10:15]} 13. Ba2 {[%clk 01:29:04]} {[%emt 00:01:36]} Ba6 {[%clk
01:05:09]} {[%emt 00:09:48]} 14. Rfe1 {[%clk 01:26:34]} {[%emt 00:03:01]} b4
{[%clk 01:00:25]} {[%emt 00:05:15]} 15. axb4 {[%clk 01:25:50]} {[%emt
00:01:13]} Bxb4 {[%clk 01:00:41]} {[%emt 00:00:14]} 16. Ne5 {[%clk 01:24:19]}
{[%emt 00:01:58]} Rac8 {[%clk 00:50:24]} {[%emt 00:10:51]} 17. Ra1 {[%clk
01:23:01]} {[%emt 00:01:47]} Qb6 {[%clk 00:44:03]} {[%emt 00:06:49]} 18. Qb3
{[%clk 01:19:34]} {[%emt 00:03:59]} Nd5 {[%clk 00:36:04]} {[%emt 00:08:28]} 19.
Rec1 {[%clk 01:17:13]} {[%emt 00:02:51]} c5 {[%clk 00:29:35]} {[%emt 00:07:00]}
20. Na4 {[%clk 01:13:43]} {[%emt 00:04:00]} Qd6 {[%clk 00:28:15]} {[%emt
00:01:50]} 1/2-1/2